bitfinex-derivatives/quotes_SOLF0:USTF0_20241107
["timestamp","ask_amount","ask_price","bid_price","bid_amount"]
[1730999878510,12.35793175,194.35,194.26,1.2576]
[1730999878912,12.35793175,194.35,194.26,2.5426]
[1730999879217,2.5699,194.33,194.29,2.5704]
[1730999879516,2.5699,194.33,194.26,2.5426]
[1730999879722,2.5699,194.33,194.29,2.5704]
[1730999880018,2.5695,194.37,194.28,12.35793175]
[1730999880215,2.5695,194.37,194.29,1.2115]
[1730999880417,12.35793175,194.38,194.29,1.2115]
[1730999880624,2.5693,194.38,194.34,2.5697]
[1730999880918,5.2,194.4,194.29,1.2115]
[1730999881314,5.2,194.4,194.31,12.35793175]
[1730999882114,14.91061902,194.43,194.31,12.35793175]
[1730999882320,2.5691,194.4,194.35,2.5696]
[1730999882621,14.91061902,194.43,194.31,12.35793175]
[1730999882822,2.5693,194.39,194.34,2.5698]
[1730999883117,12.35793175,194.42,194.31,12.35793175]
[1730999883520,2.5689,194.41,194.31,12.35793175]
[1730999884924,2.569,194.4,194.31,12.35793175]
[1730999885113,2.569,194.4,194.33,2.5698]
[1730999885311,12.35793175,194.39,194.29,1.2115]
[1730999885613,12.35793175,194.39,194.33,2.5699]
[1730999885614,2.5693,194.38,194.33,2.5699]
[1730999886008,12.35793175,194.37,194.29,1.2115]
[1730999886812,14.87113434,194.37,194.29,1.2115]
[1730999887017,12.35793175,194.34,194.27,2.5706]
[1730999887217,12.35793175,194.34,194.26,1.2576]
[1730999887513,5.2,194.43,194.29,12.35793175]
[1730999887713,12.35793175,194.42,194.29,12.35793175]
[1730999888118,2.569,194.4,194.34,2.5698]
[1730999888521,12.35793175,194.42,194.29,12.35793175]
[1730999889128,47.78635082,194.46,194.34,12.35793175]
[1730999889418,5.147,194.79,194.3,5.2]
[1730999889419,47.62258573,194.77,194.43,12.35793175]
[1730999889621,5.37175199,194.73,194.44,3.6148]
[1730999889829,12.35793175,194.56,194.44,3.6148]
[1730999890017,5.2,194.56,194.44,3.6148]
[1730999890326,5.2,194.55,194.45,2.5683]
[1730999890525,5.2,194.55,194.44,3.6148]
[1730999891021,12.35793175,194.53,194.44,3.6148]
[1730999891218,12.35793175,194.53,194.44,2.4322]
[1730999892327,12.35793175,194.51,194.44,2.4322]
[1730999892718,12.35793175,194.51,194.38,14.92713175]
[1730999892914,12.35793175,194.51,194.39,1.2936]
[1730999893719,12.35793175,194.48,194.39,1.2936]
[1730999893921,2.5686,194.43,194.33,14.92773175]
[1730999894127,2.5686,194.43,194.33,13.65153175]
[1730999894128,5.46,194.43,194.33,13.65153175]
[1730999894420,5.46,194.43,194.35,2.5696]
[1730999895014,5.46,194.43,194.38,2.5692]
[1730999895219,5.46,194.43,194.33,13.65153175]
[1730999896123,5.46,194.43,194.37,2.5694]
[1730999897118,5.46,194.43,194.33,13.65153175]
[1730999897119,8.0286,194.43,194.33,13.65153175]
[1730999897525,5.46,194.43,194.33,13.65153175]
[1730999897725,5.46,194.44,194.36,12.35793175]
[1730999897924,5.46,194.46,194.4,2.5689]
[1730999898423,5.46,194.46,194.36,12.35793175]
[1730999898628,2.5685,194.44,194.37,2.5693]
[1730999899631,17.81793175,194.46,194.34,12.35793175]
[1730999899829,2.5686,194.44,194.34,12.35793175]
[1730999900030,17.81793175,194.46,194.34,12.35793175]
[1730999900333,12.35793175,194.43,194.33,1.2936]
[1730999900522,12.35793175,194.4,194.33,1.2936]
[1730999900823,5.46,194.46,194.25,38.60063614]
[1730999900824,12.35793175,194.37,194.26,12.35793175]
[1730999901032,12.35793175,194.34,194.23,12.35793175]
[1730999901220,12.35793175,194.34,194.21,3.6192]
[1730999901221,12.35793175,194.32,194.21,3.6192]
[1730999901421,2.5705,194.29,194.23,2.5713]
[1730999901625,12.35793175,194.29,194.21,3.6192]
[1730999901826,12.35793175,194.27,194.21,2.4001]
[1730999902023,12.35793175,194.25,194.09,1.2191]
[1730999902232,5.46,194.24,194.16,12.35793175]
[1730999902528,17.81793175,194.3,194.19,12.35793175]
[1730999902732,12.35793175,194.28,194.16,12.35793175]
[1730999903224,12.35793175,194.28,194.1,12.35793175]
[1730999903225,12.35793175,194.28,194.19,12.35793175]
[1730999903426,12.35793175,194.28,194.2,2.4283]
[1730999903625,5.46,194.29,194.2,2.4283]
[1730999903827,5.46,194.29,194.2,4.9999]
[1730999904421,8.0305,194.29,194.21,2.5715]
[1730999904828,5.46,194.29,194.21,2.5715]
[1730999905029,5.46,194.28,194.21,2.5715]
[1730999905534,5.46,194.28,194.2,2.4283]
[1730999906034,2.5709,194.27,194.2,5.0]
[1730999906428,2.5709,194.27,194.2,2.4283]
[1730999906741,2.5712,194.24,194.11,19.75687013]
[1730999907127,5.46,194.28,194.11,19.75687013]
[1730999907322,2.5714,194.22,194.16,2.5721]
[1730999907532,2.5714,194.22,194.11,19.75687013]
[1730999908241,19.75687013,194.25,194.11,19.75687013]
[1730999908432,5.46,194.28,194.18,2.5718]
[1730999908628,19.75687013,194.29,194.14,19.75687013]
[1730999908828,5.46,194.28,194.14,19.75687013]
[1730999909129,2.5712,194.24,194.14,19.75687013]
[1730999909336,5.46,194.28,194.14,19.75687013]
[1730999909735,19.75687013,194.26,194.11,19.75687013]
[1730999910327,5.46,194.28,194.11,19.75687013]
[1730999910734,2.5714,194.22,194.16,2.5722]
[1730999911034,19.75687013,194.29,194.11,19.75687013]
[1730999911242,2.5708,194.27,194.2,2.5715]
[1730999911434,5.46,194.27,194.2,2.5715]
[1730999912339,5.46,194.27,194.14,19.75687013]
[1730999912642,25.21687013,194.29,194.17,19.75687013]
[1730999912841,27.78737013,194.29,194.18,1.251]
[1730999913233,27.78737013,194.29,194.19,2.4574]
[1730999913835,22.32707013,194.32,194.19,2.4574]
[1730999914142,24.95687013,194.32,194.19,2.4574]
[1730999914845,24.95687013,194.32,194.26,2.5708]
[1730999915046,24.95687013,194.32,194.2,19.75687013]
[1730999915047,2.5702,194.31,194.2,19.75687013]
[1730999915440,24.95687013,194.32,194.2,19.75687013]
[1730999915646,2.5705,194.29,194.19,2.4574]
[1730999915945,19.75687013,194.29,194.21,2.5714]
[1730999916144,2.5708,194.27,194.21,2.5714]
[1730999916646,19.75687013,194.29,194.19,2.4574]
[1730999917847,24.95687013,194.32,194.19,2.4574]
[1730999918242,2.5702,194.31,194.26,2.5708]
[1730999918448,39.60937201,194.37,194.2,19.75687013]
[1730999918449,5.2,194.33,194.2,19.75687013]
[1730999918836,7.77,194.33,194.27,2.5707]
[1730999919137,5.2,194.33,194.27,2.5707]
[1730999919644,5.2,194.33,194.29,2.5703]
[1730999920145,19.75687013,194.35,194.29,2.5703]
[1730999920447,22.32657013,194.35,194.29,2.5703]
[1730999920647,5.2,194.35,194.29,2.5703]
[1730999921246,5.2,194.35,194.23,19.75687013]
[1730999921439,24.95687013,194.35,194.27,2.5707]
[1730999921645,24.95687013,194.35,194.23,19.75687013]
[1730999921646,2.57,194.33,194.2,19.75687013]
[1730999922250,2.5701,194.32,194.2,19.75687013]
[1730999922744,24.95687013,194.35,194.2,19.75687013]
[1730999922945,2.5702,194.31,194.2,19.75687013]
[1730999923340,19.75687013,194.32,194.24,2.571]
[1730999923548,2.5706,194.28,194.19,2.4574]
[1730999923739,19.75687013,194.31,194.19,2.4574]
[1730999924648,19.75687013,194.31,194.23,2.5712]
[1730999925344,19.75687013,194.31,194.25,2.571]
[1730999925545,19.75687013,194.34,194.2,19.75687013]
[1730999925750,2.5702,194.31,194.24,2.5711]
[1730999925952,19.75687013,194.34,194.2,19.75687013]
[1730999926445,5.2,194.33,194.2,19.75687013]
[1730999926845,24.95687013,194.34,194.2,19.75687013]
[1730999927547,2.5701,194.32,194.24,2.5711]
[1730999927850,24.95687013,194.34,194.2,19.75687013]
[1730999928046,2.5704,194.3,194.26,2.5708]
[1730999929548,2.5705,194.29,194.2,12.34650883]
[1730999929753,12.34650883,194.26,194.19,2.4574]
[1730999930139,12.34650883,194.26,194.21,2.5714]
[1730999930339,12.34650883,194.28,194.21,2.5714]
[1730999930644,12.34650883,194.28,194.19,2.4574]
[1730999930645,2.571,194.25,194.2,2.5716]
[1730999930845,14.95258857,194.28,194.19,1.2345]
[1730999930846,5.2,194.26,194.19,1.2345]
[1730999931051,12.34650883,194.25,194.19,1.2345]
[1730999931254,14.91750883,194.25,194.2,2.5715]
[1730999931450,5.2,194.26,194.19,1.2345]
[1730999931853,5.2,194.26,194.14,1.2885]
[1730999932154,12.34650883,194.19,194.09,12.34650883]
[1730999932542,14.91840883,194.19,194.12,2.5727]
[1730999932751,14.91840883,194.19,194.09,12.34650883]
[1730999933349,2.5719,194.19,194.07,19.77663652]
[1730999933949,19.77663652,194.22,194.07,19.77663652]
[1730999934155,19.77663652,194.18,194.06,3.6821]
[1730999934350,24.97663652,194.18,194.06,3.6821]
[1730999934655,2.5721,194.17,194.12,2.5727]
[1730999935154,2.5721,194.17,193.98,5.1492]
[1730999935155,19.77663652,194.15,193.96,2.35006901]
[1730999935357,19.77663652,194.15,194.01,2.4093]
[1730999935953,19.77663652,194.15,194.04,2.5737]
[1730999936455,2.5732,194.09,194.04,2.5737]
[1730999937060,7.773,194.1,194.05,2.5736]
[1730999937770,2.573,194.1,194.05,2.5736]
[1730999938268,19.77663652,194.09,194.01,1.208]
[1730999938572,19.77663652,194.09,193.97,1.2569]
[1730999938770,2.5734,194.07,193.97,1.2569]
[1730999938967,2.5734,194.07,194.01,2.5741]
[1730999939371,2.63247416,194.08,193.97,1.2569]
[1730999939566,19.77663652,194.09,194.02,2.574]
[1730999939871,22.34983652,194.09,193.97,1.2569]
[1730999940259,19.77663652,194.09,194.03,2.5739]
[1730999940660,22.34973652,194.09,194.03,2.5739]
[1730999941369,24.97663652,194.09,193.97,1.2569]
[1730999941665,5.2,194.12,194.0,19.77663652]
[1730999941865,19.77663652,194.15,194.0,19.77663652]
[1730999942070,5.2,194.16,194.03,19.77663652]
[1730999942270,7.7723,194.16,194.1,2.5729]
[1730999942471,7.7723,194.16,194.04,2.5597]
[1730999942472,5.2,194.16,194.04,2.5597]
[1730999942672,19.77663652,194.15,194.04,2.5597]
[1730999942868,19.77663652,194.15,194.08,2.5732]
[1730999943169,19.77663652,194.15,194.04,2.5597]
[1730999943371,2.5725,194.14,194.04,2.5597]
[1730999943675,19.77663652,194.15,193.99,19.77663652]
[1730999943865,2.5728,194.11,194.05,2.5735]
[1730999944179,19.77663652,194.15,194.05,2.5735]
[1730999944566,2.573,194.11,194.06,2.5735]
[1730999945068,2.573,194.1,194.0,1.2432]
[1730999945265,2.573,194.1,194.05,2.5736]
[1730999945466,2.573,194.1,194.0,1.2432]
[1730999945764,22.34993652,194.08,194.02,2.574]
[1730999945964,5.02,194.07,194.02,2.574]
[1730999946766,7.5934,194.07,194.02,2.574]
[1730999947063,7.5934,194.07,194.03,2.5739]
[1730999947266,7.5934,194.07,194.0,1.2432]
[1730999947475,7.5934,194.07,194.02,2.574]
[1730999947668,7.5934,194.07,194.0,1.2432]
[1730999947669,5.02,194.07,194.0,1.2432]
[1730999948275,7.5934,194.07,194.02,2.574]
[1730999948470,5.02,194.07,194.0,1.2432]
[1730999948680,5.02,194.07,194.04,2.5737]
[1730999950672,5.02,194.07,194.05,2.5736]
[1730999951174,5.02,194.07,194.0,1.2432]
[1730999951878,5.02,194.07,194.03,2.5739]
[1730999952376,7.5934,194.07,194.03,2.5739]
[1730999952574,5.02,194.07,194.04,2.5737]
[1730999953172,5.02,194.07,194.0,1.2432]
[1730999953373,19.77663652,194.05,194.0,2.5743]
[1730999953573,22.37140616,194.05,194.0,2.5743]
[1730999953779,22.37140616,194.05,193.9,20.96773652]
[1730999953979,24.94510616,194.05,193.99,2.5744]
[1730999954776,24.94510616,194.05,194.0,2.5743]
[1730999954978,22.37140616,194.05,193.91,1.2872]
[1730999955280,19.77663652,194.02,193.91,1.2872]
[1730999955482,19.77663652,194.02,193.94,2.5751]
[1730999955777,2.5745,193.99,193.91,1.2872]
[1730999955979,24.79663652,193.99,193.91,1.2872]
[1730999956371,24.79663652,193.99,193.94,2.575]
[1730999956575,24.79663652,193.99,193.91,1.2872]
[1730999957985,2.5746,193.98,193.94,2.5751]
[1730999958185,24.79663652,193.99,193.94,2.5751]
[1730999958479,19.77663652,193.99,193.96,2.5748]
[1730999958886,19.77663652,194.03,193.91,1.2872]
[1730999959080,5.02,194.02,193.91,1.2872]
[1730999959279,7.61119165,194.02,193.91,1.2872]
[1730999959681,2.5743,194.0,193.91,1.2872]
[1730999959885,7.61119165,194.02,193.91,1.2872]
[1730999960278,7.61119165,194.02,193.93,2.5752]
[1730999960279,2.5747,193.98,193.93,2.5752]
[1730999960681,2.5747,193.98,193.91,1.2872]
[1730999960682,19.77663652,194.0,193.9,1.1911]
[1730999960879,2.5752,193.94,193.83,2.4295]
[1730999961385,19.77663652,193.96,193.92,2.5753]
[1730999961583,19.77663652,193.96,193.83,2.4295]
[1730999961888,4.76,193.95,193.83,2.4295]
[1730999962081,7.335,193.95,193.89,2.5756]
[1730999962387,7.335,193.95,193.83,2.4295]
[1730999962686,4.76,193.95,193.91,2.5755]
[1730999963282,4.76,193.95,193.83,2.4295]
[1730999963483,19.77663652,193.99,193.84,19.77663652]
[1730999963685,2.5743,194.01,193.88,19.77663652]
[1730999963889,4.76,194.02,193.97,2.5747]
[1730999964091,4.76,194.02,193.88,19.77663652]
[1730999964291,2.5742,194.01,193.88,19.77663652]
[1730999964484,2.5742,194.01,193.95,2.5749]
[1730999964991,2.5744,194.0,193.95,2.5749]
[1730999965991,2.5744,194.0,193.88,19.77663652]
[1730999966584,2.5742,194.01,193.88,19.77663652]
[1730999967190,2.5742,194.01,193.96,2.5747]
[1730999967583,4.76,194.02,193.85,2.35006901]
[1730999967784,4.76,194.02,193.84,7.11006901]
[1730999967989,4.76,194.02,193.86,19.77663652]
[1730999968386,22.31358645,194.03,193.95,2.5749]
[1730999968387,2.5743,194.0,193.95,2.5749]
[1730999968586,4.76,194.01,193.95,2.5749]
[1730999969089,2.5745,193.99,193.95,2.5749]
[1730999969283,4.76,194.01,193.88,19.77663652]
[1730999970190,2.5744,194.0,193.96,2.5748]
[1730999970692,4.76,194.01,193.97,2.5746]
[1730999971695,4.76,194.01,193.91,3.7777]
[1730999971696,4.76,194.01,193.92,12.36870731]
[1730999971994,0.23372,194.05,193.94,12.36870731]
[1730999972195,4.99372,194.05,193.94,12.36870731]
[1730999972390,4.99372,194.05,193.91,3.7777]
[1730999972698,0.23372,194.05,193.97,12.36870731]
[1730999973194,0.23372,194.05,193.91,10.88776901]
[1730999973395,0.23372,194.05,194.02,2.5739]
[1730999973790,0.23372,194.05,193.92,2.35006901]
[1730999973986,2.5738,194.04,193.98,2.5745]
[1730999974196,0.23372,194.05,193.96,12.36870731]
[1730999974702,0.23372,194.05,193.93,2.35006901]
[1730999974893,0.23372,194.05,193.97,12.36870731]
[1730999975290,0.23372,194.05,193.99,12.36870731]
[1730999975493,0.23372,194.05,194.04,2.5738]
[1730999978792,0.23372,194.05,194.02,2.574]
[1730999980093,0.23372,194.05,194.0,3.8533]
[1730999980694,0.23372,194.05,194.04,2.5738]
[1730999981298,2.5729,194.11,194.06,2.5734]
[1730999981485,16.88870731,194.12,194.06,2.5734]
[1730999981988,12.36870731,194.12,194.0,3.8533]
[1730999982194,12.36870731,194.12,194.03,12.36870731]
[1730999982800,0.2376,194.23,194.05,2.5735]
[1730999982801,14.94170731,194.1,194.05,2.5735]
[1730999982996,14.94170731,194.1,194.0,3.8533]
[1730999983206,12.36870731,194.1,194.0,3.8533]
[1730999983500,12.36870731,194.1,194.04,2.5736]
[1730999983501,2.5732,194.09,194.04,2.5736]
[1730999983691,14.94334849,194.1,194.0,3.8533]
[1730999984088,2.5733,194.08,194.04,2.5738]
[1730999984594,14.94334849,194.1,194.0,3.8533]
[1730999984788,2.5734,194.07,194.0,3.8533]
[1730999984993,14.94210731,194.07,194.0,3.8533]
[1730999985796,14.94210731,194.07,194.02,2.574]
[1730999985993,12.36870731,194.07,194.0,3.8533]
[1730999986397,12.36870731,194.07,194.02,2.5739]
[1730999986696,14.94220731,194.07,194.02,2.5739]
[1730999986896,12.36870731,194.07,194.0,3.8533]
[1730999987396,14.94334849,194.1,194.0,3.8533]
[1730999987705,12.36870731,194.1,194.0,3.8533]
[1730999987898,12.36870731,194.1,194.01,12.36870731]
[1730999988095,12.36870731,194.1,194.07,2.5733]
[1730999988596,19.44301449,194.13,194.01,12.36870731]
[1730999989190,2.5728,194.12,194.01,12.36870731]
[1730999989605,2.5728,194.12,194.0,3.8533]
[1730999989606,12.36870731,194.11,194.0,3.8533]
[1730999989996,14.94160731,194.11,194.06,2.5734]
[1730999990306,14.94160731,194.11,194.0,3.8533]
[1730999990307,12.36870731,194.11,194.0,3.8533]
[1730999990496,2.5732,194.09,194.05,2.5735]
[1730999990696,12.36870731,194.11,194.0,3.8533]
[1730999991096,14.94160731,194.11,194.06,2.5734]
[1730999991507,12.36870731,194.11,194.0,3.8533]
[1730999992602,12.36870731,194.11,194.09,2.5731]
[1730999993300,12.36870731,194.11,194.0,3.8533]
[1730999994308,12.36870731,194.11,194.08,2.5732]
[1730999994511,12.36870731,194.11,194.0,3.8533]
[1730999994701,19.50261336,194.13,194.0,3.8533]
[1730999994905,19.50261336,194.13,194.09,2.573]
[1730999995105,22.07521336,194.13,194.09,2.573]
[1730999996905,12.36870731,194.1,194.07,2.5733]
[1730999997105,12.36870731,194.1,194.0,3.8533]
[1730999997302,12.36870731,194.1,194.03,2.5739]
[1730999997611,12.36870731,194.1,194.0,3.8533]
[1730999997812,19.50261336,194.13,194.09,2.573]
[1730999998111,22.07531336,194.13,194.09,2.573]
[1730999998300,19.50261336,194.13,194.0,3.8533]
[1730999998496,19.50261336,194.13,194.07,2.5733]
[1730999998700,12.36870731,194.1,194.07,2.5733]
[1730999999410,12.36870731,194.08,194.0,3.8533]
[1730999999911,12.36870731,194.08,194.05,2.5735]
[1731000000115,14.94180731,194.1,194.05,2.5735]
[1731000000509,14.94180731,194.1,194.0,3.8533]
[1731000000818,12.36870731,194.1,194.06,2.5734]
[1731000001020,12.36870731,194.1,194.0,3.8533]
[1731000001214,12.36870731,194.13,194.09,2.573]
[1731000002314,14.94140731,194.13,194.08,2.5732]
[1731000002516,12.36870731,194.13,194.02,12.36870731]
[1731000002714,14.94130731,194.13,194.02,12.36870731]
[1731000002916,14.94130731,194.13,194.09,2.5731]
[1731000003923,14.94130731,194.13,194.02,12.36870731]
[1731000003924,2.5728,194.12,194.08,2.5732]
[1731000004226,12.36870731,194.11,194.0,16.22200731]
[1731000004428,12.36870731,194.09,194.0,3.8533]
[1731000005020,2.5733,194.08,194.04,2.5737]
[1731000005217,2.5733,194.08,194.0,3.8533]
[1731000005424,12.36870731,194.09,194.0,3.8533]
[1731000005624,12.36870731,194.06,194.03,2.5739]
[1731000005922,14.91168033,194.06,194.0,2.5636]
[1731000006317,12.36870731,194.04,193.95,1.2936]
[1731000007116,2.61561467,194.03,193.99,2.5743]
[1731000007318,14.94250731,194.04,193.99,2.5743]
[1731000007620,12.36870731,194.04,193.95,1.2936]
[1731000008122,14.95289545,194.06,194.02,2.574]
[1731000008315,12.36870731,194.06,194.02,2.574]
[1731000008822,2.54221263,194.05,193.95,1.2936]
[1731000009021,12.36870731,194.06,193.96,12.36870731]
[1731000009623,12.36870731,194.06,194.04,2.5737]
[1731000010422,14.91967909,194.06,193.95,1.2936]
[1731000010621,12.36870731,194.04,193.95,1.2936]
[1731000011126,14.95059371,194.04,193.95,1.2936]
[1731000012119,12.36870731,194.01,193.93,2.4682]
[1731000012422,12.36870731,194.01,193.9,12.36870731]
[1731000012423,4.28,194.0,193.9,12.36870731]
[1731000012627,4.28,194.0,193.91,2.447]
[1731000013717,12.36870731,194.01,193.99,2.5743]
[1731000014032,4.28,194.03,193.91,2.447]
[1731000014227,4.28,194.03,193.94,12.36870731]
[1731000014522,16.64870731,194.04,193.91,2.447]
[1731000014725,16.64870731,194.04,193.94,12.36870731]
[1731000014918,16.64870731,194.04,193.97,2.5746]
[1731000015126,16.64870731,194.04,193.95,1.2343]
[1731000015325,12.36870731,194.04,193.95,1.2343]
[1731000015521,4.28,194.05,193.95,1.2343]
[1731000015716,12.36870731,194.04,193.95,1.2343]
[1731000015923,12.36870731,194.04,193.97,2.5746]
[1731000016118,12.36870731,194.01,193.91,2.447]
[1731000016328,4.28,194.05,193.91,2.447]
[1731000016329,12.36870731,194.03,193.91,2.447]
[1731000016530,12.36870731,194.03,193.93,12.36870731]
[1731000017027,12.36870731,194.03,194.02,2.574]
[1731000017425,12.36870731,194.03,193.93,12.36870731]
[1731000017625,12.36870731,194.03,194.0,2.5742]
[1731000017824,12.36870731,194.03,193.93,12.36870731]
[1731000018023,12.36870731,194.03,193.94,4.8166289]
[1731000018322,12.36870731,194.03,193.91,2.447]
[1731000018630,12.36870731,194.01,193.92,4.82478234]
[1731000018828,12.36870731,194.01,193.93,4.82478234]
[1731000019024,12.36870731,194.01,193.91,2.447]
[1731000019220,12.36870731,194.01,193.92,4.82578389]
[1731000019421,12.36870731,194.01,193.95,2.5749]
[1731000019422,12.36870731,193.98,193.95,2.5749]
[1731000019628,16.64870731,193.98,193.91,2.447]
[1731000019933,16.64870731,193.98,193.91,1.2564]
[1731000020233,19.22330731,193.98,193.93,2.5751]
[1731000020427,16.64870731,193.98,193.93,2.5751]
[1731000020627,4.28,194.01,193.91,1.2564]
[1731000020826,12.36870731,194.0,193.91,1.2564]
[1731000021429,14.94300731,194.0,193.95,2.5749]
[1731000022130,14.94300731,194.0,193.96,2.5748]
[1731000022829,12.36870731,194.0,193.91,1.2564]
[1731000023132,12.36870731,194.0,193.98,2.5745]
[1731000023529,12.36870731,194.0,193.97,2.5747]
[1731000024438,12.36870731,193.97,193.91,1.2564]
[1731000025836,14.94340731,193.97,193.93,2.5752]
[1731000026036,12.36870731,193.97,193.91,1.2564]
[1731000028037,12.36870731,193.97,193.92,2.5753]
[1731000028239,12.36870731,193.97,193.91,1.2564]
[1731000028644,12.36870731,193.97,193.94,2.575]
[1731000028941,12.36870731,193.97,193.91,1.2564]
[1731000029138,12.36870731,193.97,193.94,2.5751]
[1731000029536,12.36870731,193.97,193.91,1.2564]
[1731000029733,12.36870731,193.97,193.94,2.5751]
[1731000029939,12.36870731,194.0,193.91,1.2564]
[1731000030143,12.36870731,194.02,193.91,13.62510731]
[1731000030440,16.64870731,194.05,194.01,2.5742]
[1731000030744,0.2375,194.11,193.96,12.36870731]
[1731000030745,12.36870731,194.07,193.96,12.36870731]
[1731000030941,12.36870731,194.07,193.97,1.2953]
[1731000031144,14.94210731,194.07,193.97,1.2953]
[1731000031445,12.36870731,194.07,193.97,1.2953]
[1731000031942,12.36870731,194.05,193.97,1.2953]
[1731000032241,12.36870731,194.05,194.02,2.5739]
[1731000033545,12.36870731,194.05,194.04,2.5738]
[1731000033739,12.36870731,194.08,194.04,2.5738]
[1731000033942,12.36870731,194.08,193.97,13.66400731]
[1731000033943,12.36870731,194.1,193.99,12.36870731]
[1731000034145,12.36870731,194.1,194.0,1.2129]
[1731000034655,47.87234174,194.12,194.05,2.5736]
[1731000034840,47.87234174,194.12,194.02,12.36870731]
[1731000035045,12.36870731,194.1,194.0,13.58160731]
[1731000035242,12.36870731,194.1,194.05,2.5735]
[1731000035543,50.44514174,194.12,194.0,1.2129]
[1731000035544,12.36870731,194.07,194.0,1.2129]
[1731000036348,14.94220731,194.07,194.01,2.5741]
[1731000036541,12.36870731,194.07,194.01,2.5741]
[1731000037043,12.36870731,194.05,194.01,2.5741]
[1731000037348,12.36870731,194.05,194.01,2.5742]
[1731000038443,2.5734,194.07,194.03,2.5738]
[1731000038746,2.5734,194.07,193.97,13.66400731]
[1731000038747,12.36870731,194.07,193.97,13.66400731]
[1731000038944,12.36870731,194.07,194.0,2.5743]
[1731000039249,12.36870731,194.07,193.97,13.66400731]
[1731000040049,12.36870731,194.07,193.97,1.2953]
[1731000040648,12.36870731,194.05,193.97,1.2953]
[1731000041146,12.36870731,194.05,194.01,2.574]
[1731000041637,12.36870731,194.05,193.97,1.2953]
[1731000042141,2.5738,194.04,193.97,1.2953]
[1731000042449,12.36870731,194.03,193.99,2.5744]
[1731000042650,12.36870731,194.03,193.97,1.2953]
[1731000042854,12.36870731,194.03,193.98,2.5745]
[1731000043057,12.36870731,194.0,193.88,12.36870731]
[1731000043347,12.36870731,194.0,193.92,2.5753]
[1731000043550,12.36870731,194.0,193.89,3.734]
[1731000043744,12.36870731,194.0,193.9,13.85357607]
[1731000043945,12.36870731,194.0,193.91,4.83279236]
[1731000044149,12.36870731,194.0,193.92,4.83279236]
[1731000044349,12.36870731,194.0,193.92,2.5753]
[1731000044643,14.94310731,194.0,193.89,3.734]
[1731000044849,14.94310731,194.0,193.95,2.575]
[1731000045043,12.36870731,194.0,193.95,2.575]
[1731000045447,2.5745,193.99,193.94,2.5751]
[1731000045642,12.36870731,194.0,193.89,3.734]
[1731000046045,12.36870731,194.0,193.9,4.83090319]
[1731000046244,12.36870731,193.97,193.89,3.734]
[1731000046442,12.36870731,193.97,193.94,2.5751]
[1731000047348,12.36870731,194.0,193.9,12.36870731]
[1731000047947,12.36870731,194.0,193.96,2.5747]
[1731000048352,12.36870731,194.0,193.9,12.36870731]
[1731000048552,12.36870731,194.0,193.97,2.5747]
[1731000049347,12.36870731,194.0,193.9,12.36870731]
[1731000049543,16.46870731,194.0,193.98,2.5745]
[1731000050545,16.46870731,194.0,193.97,2.5747]
[1731000050854,16.46870731,194.0,193.9,12.36870731]
[1731000050855,16.46870731,194.0,193.89,3.734]
[1731000051251,16.46870731,194.0,193.94,2.5751]
[1731000051556,12.36870731,193.97,193.89,3.734]
[1731000052551,12.36870731,193.97,193.93,2.5751]
[1731000053254,12.36870731,193.97,193.94,2.5751]
[1731000053557,12.36870731,193.97,193.89,3.734]
[1731000053952,12.36870731,193.97,193.95,2.5749]
[1731000054549,12.36870731,193.97,193.89,3.734]
[1731000054749,12.36870731,193.97,193.96,2.5748]
[1731000055358,16.46870731,194.0,193.9,12.36870731]
[1731000055659,16.46870731,194.0,193.89,3.734]
[1731000055855,12.36870731,193.97,193.89,3.734]
[1731000056660,12.36870731,193.97,193.94,2.575]
[1731000057554,4.1,194.0,193.89,3.734]
[1731000057555,19.04310731,194.0,193.89,3.734]
[1731000057949,19.04310731,194.0,193.96,2.5748]
[1731000059257,12.36870731,193.97,193.89,3.734]